bitfinex-derivatives/quotes_ETHF0:USTF0_20260120
["timestamp","ask_amount","ask_price","bid_price","bid_amount"]
[1768933236179,1.879,2999.4,2997.8,3.58030879]
[1768933236978,5.26318677,2999.4,2997.8,3.58030879]
[1768933238083,3.55106677,2999.3,2997.8,0.00351021]
[1768933238289,3.38418677,2999.3,2997.8,0.00351021]
[1768933238488,3.38418677,2998.7,2997.8,0.00351021]
[1768933238782,3.38418677,2998.2,2996.5,3.57679858]
[1768933238980,1.41693,2998.3,2996.5,3.57679858]
[1768933239185,4.63418677,2998.3,2996.5,3.57679858]
[1768933239384,0.16695,2997.9,2996.5,3.57679858]
[1768933239583,2.04595,2997.9,2996.5,3.57679858]
[1768933239784,2.04982123,2997.9,2996.5,3.5801382]
[1768933240283,5.434008,2997.9,2996.5,0.00333962]
[1768933240584,3.38418677,2997.6,2996.5,0.00333962]
[1768933240776,3.55115677,2997.6,2996.5,0.00333962]
[1768933241178,0.16697,2997.6,2996.5,0.00333962]
[1768933241378,1.879,2997.8,2996.5,0.00333962]
[1768933241578,3.38418677,2997.7,2996.5,0.00333962]
[1768933242086,0.00387123,2997.9,2996.5,0.00333962]
[1768933242289,5.26318677,2997.8,2996.5,0.00333962]
[1768933242489,3.38418677,2997.5,2996.5,0.00333962]
[1768933242691,3.55116677,2997.4,2995.6,3.57679858]
[1768933243893,3.55117677,2997.3,2995.6,3.5800876]
[1768933244691,3.55117677,2997.3,2995.6,0.00328902]
[1768933244887,3.64718914,2997.1,2995.6,0.00328902]
[1768933245084,3.64718914,2997.1,2995.6,3.65503794]
[1768933245289,1.879,2997.2,2995.6,3.65503794]
[1768933245493,1.879,2997.2,2995.6,0.00328902]
[1768933245494,5.67014113,2997.2,2995.6,0.00328902]
[1768933245695,3.79115113,2997.1,2995.6,0.00328902]
[1768933246593,3.62415113,2996.9,2995.6,0.00328902]
[1768933246898,1.88,2996.8,2995.6,0.00328902]
[1768933247997,3.62415113,2996.9,2995.6,0.00328902]
[1768933248199,2.047,2997.1,2995.6,0.00328902]
[1768933249198,1.88,2997.0,2995.6,0.00328902]
[1768933249799,0.167,2997.1,2995.6,3.65503794]
[1768933250102,2.047,2997.1,2995.6,3.65503794]
[1768933250299,3.62415113,2997.3,2995.6,3.65503794]
[1768933250499,3.79111113,2997.8,2995.8,3.65174892]
[1768933250697,1.80001511,2998.7,2995.6,0.00328902]
[1768933250698,3.79108113,2998.3,2996.0,3.81880892]
[1768933251001,1.88387123,2997.9,2996.4,3.65174892]
[1768933251199,0.00387123,2997.9,2996.7,5.45773804]
[1768933251499,0.00387123,2997.9,2996.8,3.65174892]
[1768933252599,0.00387123,2997.9,2996.3,1.80598912]
[1768933252600,0.00387123,2997.9,2996.4,3.65174892]
[1768933255900,0.00387123,2997.9,2996.8,3.65174892]
[1768933256597,0.00387123,2997.9,2996.3,5.45773804]
[1768933257000,0.00387123,2997.9,2996.4,3.65174892]
[1768933258696,0.00387123,2997.9,2996.8,5.45773804]
[1768933260207,0.00387123,2997.9,2996.9,3.65174892]
[1768933264898,0.16692,2998.5,2996.9,3.65174892]
[1768933266003,0.16692,2998.5,2997.3,3.65174892]
[1768933266004,0.00426503,2998.5,2997.3,3.65174892]
[1768933267010,0.00426503,2998.5,2997.3,5.45773804]
[1768933267210,0.00426503,2998.5,2997.4,3.65174892]
[1768933269213,0.16688,2999.2,2997.4,3.65174892]
[1768933270416,0.00309097,2999.2,2997.8,3.65174892]
[1768933270606,0.00309097,2999.2,2997.8,3.65447304]
[1768933270810,0.00309097,2999.2,2998.1,1.80598912]
[1768933272116,0.00309097,2999.2,2998.1,5.45773804]
[1768933275519,3.59765327,3000.3,2998.6,3.44438195]
[1768933276017,0.16682,3000.4,2999.0,3.44438195]
[1768933276207,3.4,3000.6,2999.0,3.44438195]
[1768933276413,3.59765327,3000.7,2999.0,3.44438195]
[1768933276617,0.00369832,3000.6,2999.0,3.44438195]
[1768933277012,0.00369832,3000.6,2999.3,1.80598912]
[1768933277216,0.00369832,3000.6,2999.4,3.44438195]
[1768933279124,0.00369832,3000.6,2998.9,5.25037107]
[1768933279513,0.00369832,3000.6,2999.0,3.44438195]
[1768933282417,3.60135159,3000.6,2999.0,3.44438195]
[1768933282620,0.16682,3000.4,2998.6,5.38338195]
[1768933282824,3.59765327,3000.5,2998.6,3.44438195]
[1768933283120,0.16683,3000.1,2998.6,3.44438195]
[1768933283631,3.76449327,2999.9,2998.4,3.44438195]
[1768933283919,1.80598912,3000.5,2998.5,3.44438195]
[1768933283920,3.59765327,3000.4,2998.5,3.44438195]
[1768933284122,3.59765327,3000.4,2998.8,5.25037107]
[1768933285324,3.76447327,3000.4,2998.8,5.25037107]
[1768933285519,0.16682,3000.4,2998.9,3.44438195]
[1768933290614,0.00369832,3000.6,2998.9,3.44438195]
[1768933290814,0.00369832,3000.6,2999.3,3.44438195]
[1768933292223,0.00369832,3000.6,2999.7,3.44438195]
[1768933292431,3.59765327,3001.3,2999.7,3.44438195]
[1768933292630,0.16675,3001.6,2999.7,3.44438195]
[1768933293028,3.56675,3001.6,3000.1,3.44438195]
[1768933293227,0.16675,3001.6,3000.1,3.44438195]
[1768933293534,0.16947391,3001.6,3000.1,3.44682022]
[1768933293731,3.76712718,3001.6,3000.1,3.44682022]
[1768933293931,3.76712718,3001.6,3000.1,0.00243827]
[1768933294929,3.60037718,3001.6,3000.1,0.00243827]
[1768933295139,0.16677,3001.2,3000.1,0.00243827]
[1768933295338,0.16678,3001.0,3000.1,0.00243827]
[1768933295532,3.76443327,3001.0,3000.1,0.00243827]
[1768933296028,0.16678,3001.0,3000.1,0.00243827]
[1768933296333,0.16947391,3001.6,3000.1,0.00243827]
[1768933297940,3.59765327,3001.5,3000.1,0.00243827]
[1768933298329,4.44090625,3001.4,3000.1,0.00243827]
[1768933298631,3.59765327,3001.4,3000.1,0.00243827]
[1768933299436,3.76441327,3001.4,3000.1,0.00243827]
[1768933300027,3.76442327,3001.2,3000.1,0.00243827]
[1768933301932,3.76443327,3001.1,3000.1,0.00243827]
[1768933302132,3.76443327,3001.0,3000.1,0.00243827]
[1768933303735,3.65743921,3000.7,2998.9,6.00213604]
[1768933303936,3.65743921,3000.7,2998.9,3.63767462]
[1768933304736,3.65743921,3000.7,2998.9,3.64066795]
[1768933305034,3.65743921,3000.7,2999.0,3.36508322]
[1768933305228,0.16682,3000.4,2999.0,3.36508322]
[1768933306435,0.16682,3000.3,2999.0,3.36508322]
[1768933306937,0.16682,3000.3,2998.9,0.00299333]
[1768933309133,7.02098912,3000.8,2998.9,0.00299333]
[1768933309134,3.57020547,3000.2,2998.9,0.00299333]
[1768933309332,3.40337547,3000.1,2998.9,0.00299333]
[1768933309530,0.16684,2999.9,2998.9,0.00299333]
[1768933309734,3.57022547,2999.8,2998.9,0.00299333]
[1768933316141,3.57022547,2999.7,2998.9,0.00299333]
[1768933316448,1.878,2999.9,2997.8,10.324]
[1768933316449,0.16688,2999.3,2997.8,10.324]
[1768933316635,3.57025547,2999.3,2997.7,3.36508322]
[1768933317242,3.57336501,2999.3,2997.7,3.36826881]
[1768933320446,0.16998954,2999.3,2997.7,3.36826881]
[1768933321048,3.57026547,2999.1,2997.7,0.00318559]
[1768933321348,0.16689,2999.1,2997.7,3.36826881]
[1768933322147,0.00310954,2999.3,2997.7,3.36826881]
[1768933323051,0.16998954,2999.3,2997.7,3.36826881]
[1768933324643,0.16688,2999.2,2997.7,3.36826881]
[1768933325343,0.00310954,2999.3,2997.7,3.36826881]
[1768933325547,0.00310954,2999.3,2997.7,3.53522881]
[1768933329445,0.00310954,2999.3,2997.8,3.36508322]
[1768933330756,0.16688,2999.2,2997.8,3.36508322]
[1768933333849,0.00310954,2999.3,2997.8,3.36508322]
[1768933334646,0.00310954,2999.3,2998.1,3.36508322]
[1768933334957,0.00310954,2999.3,2998.1,5.72954464]
[1768933335143,0.00310954,2999.3,2998.1,3.36508322]
[1768933335348,0.00310954,2999.3,2998.1,5.72954464]
[1768933335554,0.00310954,2999.3,2998.2,3.52993384]
[1768933335857,0.16683,3000.1,2998.7,3.52993384]
[1768933336153,0.16683,3000.1,2998.4,2.36446142]
[1768933336154,3.79116105,3000.1,2998.4,2.36446142]
[1768933336542,3.79116105,3000.1,2998.5,5.89439526]
[1768933336744,3.79451441,3000.1,2998.5,5.89439526]
[1768933338059,0.17018336,3000.1,2998.6,3.52993384]
[1768933338259,0.17018336,3000.1,2998.7,3.52993384]
[1768933338658,0.00335336,3000.1,2998.7,3.52993384]
[1768933338959,0.00335336,3000.1,2998.9,3.52993384]
[1768933346068,0.16678,3001.1,2999.1,3.52993384]
[1768933346261,0.16678,3001.1,2999.3,3.52993384]
[1768933346459,3.56678,3001.1,2999.3,3.52993384]
[1768933347156,3.56930802,3001.1,2999.3,3.52993384]
[1768933348678,3.79112105,3000.9,2999.3,3.52993384]
[1768933349978,0.16679,3000.9,2999.3,3.52993384]
[1768933350182,0.16679,3000.9,2999.3,5.89439526]
[1768933350379,0.16679,3000.9,2999.4,3.52993384]
[1768933352680,3.62433105,3001.0,2999.1,2.36446142]
[1768933352886,0.1668,3000.6,2999.0,5.89439526]
[1768933353080,0.1668,3000.6,2999.1,3.52993384]
[1768933353676,0.1668,3000.6,2999.2,3.52993384]
[1768933355282,0.00252802,3001.1,2999.5,3.52993384]
[1768933355283,0.16930802,3001.1,2999.5,3.52993384]
[1768933355483,0.16930802,3001.1,2999.7,3.52993384]
[1768933358583,0.00252802,3001.1,2999.7,3.52993384]
[1768933360986,0.16930802,3001.1,2999.7,3.52993384]
[1768933364889,0.16930802,3001.1,2999.4,4.30146142]
[1768933364890,0.16675,3001.7,3000.2,3.72691676]
[1768933365885,0.16966832,3001.7,3000.2,3.73077311]
[1768933368995,0.00291832,3001.7,3000.3,5.85574255]
[1768933369194,0.00291832,3001.7,3000.4,3.49128113]
[1768933369594,0.16672,3002.2,3000.4,5.85574255]
[1768933369791,0.16672,3002.2,3000.5,5.85574255]
[1768933369990,0.16672,3002.2,3000.6,5.85574255]
[1768933370192,0.16672,3002.2,3000.6,3.49128113]
[1768933370591,0.16672,3002.1,3000.6,3.49128113]
[1768933372395,0.16673,3002.0,3000.6,3.49128113]
[1768933380305,3.5364401,3002.0,3000.6,3.49128113]
[1768933382509,0.16673,3001.9,3000.6,3.49128113]
[1768933383208,0.16673,3001.9,3000.3,4.30046142]
[1768933383209,0.16674,3001.8,3000.3,1.936]
[1768933383508,0.00309506,3002.2,3000.2,0.00385635]
[1768933383509,0.16676,3001.4,3000.2,0.00385635]
[1768933383710,3.5364701,3001.4,3000.2,0.00385635]
[1768933384501,3.5364801,3001.3,3000.2,0.00385635]
[1768933385401,0.04578791,3000.8,3000.2,0.00385635]
[1768933386099,0.04578791,3000.8,2999.4,5.85574255]
[1768933386318,0.04578791,3000.8,2999.4,3.49128113]
[1768933386505,0.04578791,3000.1,2999.2,2.36446142]
[1768933386809,0.04578791,3000.1,2999.0,3.49128113]
[1768933387002,0.04578791,3000.1,2998.6,5.85574255]
[1768933387204,0.04578791,3000.1,2998.6,3.49451181]
[1768933387513,0.04578791,2999.4,2998.6,3.49451181]
[1768933387717,0.04892784,2999.4,2998.6,3.49451181]
[1768933387914,0.04892784,2999.4,2998.6,0.00323068]
[1768933388612,0.04578791,2999.0,2998.6,0.00323068]
[1768933388814,0.04578791,2999.0,2998.1,3.49128113]
[1768933389516,0.00313993,2999.4,2998.1,3.49128113]
[1768933389517,0.04578791,2998.6,2998.1,3.49128113]
[1768933389715,0.04578791,2998.6,2998.1,3.49501469]
[1768933390415,0.04578791,2998.6,2998.1,0.00373356]
[1768933390616,0.04578791,2998.4,2998.1,0.00373356]
[1768933390817,0.04578791,2998.4,2997.6,5.42728113]
[1768933391613,0.04578791,2998.0,2997.6,5.42728113]
[1768933391911,0.16688,2999.2,2997.7,3.49128113]
[1768933392512,0.00313993,2999.4,2997.7,3.49128113]
[1768933392714,3.37285003,2999.4,2997.7,3.49128113]
[1768933393116,0.16689,2999.0,2997.7,3.49128113]
[1768933397515,0.1669,2998.8,2997.7,3.49128113]
[1768933397821,0.1669,2998.8,2997.6,0.00409978]
[1768933400225,0.16692,2998.5,2997.6,0.00409978]
[1768933401922,0.16693,2998.3,2997.6,0.00409978]
[1768933402227,0.16694,2998.2,2996.8,3.63205655]
[1768933402529,3.53397186,2998.7,2996.8,3.63205655]
[1768933402530,0.16694,2998.1,2996.8,3.63205655]
[1768933403419,0.16694,2998.1,2996.8,3.63545632]
[1768933406729,0.16695,2998.0,2996.8,3.63545632]
[1768933412827,0.16695,2998.0,2997.0,1.17046253]
[1768933414232,1.17046253,2997.9,2997.0,1.17046253]
[1768933414534,1.17046253,2997.9,2996.8,4.80591885]
[1768933415034,1.17046253,2997.9,2997.0,1.17046253]
[1768933415936,0.16695,2998.0,2997.0,1.17046253]
[1768933419335,1.17046253,2998.1,2997.0,1.17046253]
[1768933419533,1.879,2998.2,2997.6,1.17046253]
[1768933419727,4.57046253,2998.9,2997.9,1.17046253]
[1768933419934,2.71369341,2998.8,2997.9,1.17046253]
[1768933420135,2.00515594,2998.7,2997.7,1.17046253]
[1768933420337,1.33738253,2998.5,2997.5,1.17046253]
[1768933420534,1.17046253,2998.3,2997.3,1.17046253]
[1768933420931,1.33738253,2998.5,2997.3,1.17046253]
[1768933421240,0.16692,2998.5,2997.5,1.17046253]
[1768933421435,1.17046253,2998.7,2997.5,1.17046253]
[1768933421436,1.879,2998.7,2997.9,1.17046253]
[1768933421626,0.16689,2999.0,2997.9,1.17046253]
[1768933421830,3.88467343,2998.9,2997.9,1.17046253]
[1768933422031,0.8352109,2998.8,2997.9,1.17046253]
[1768933422238,0.8352109,2998.7,2997.9,1.17046253]
[1768933422440,3.21636253,2998.9,2997.9,1.17046253]
[1768933422741,0.83542984,2998.8,2997.7,1.17046253]
[1768933422938,1.879,2998.8,2997.7,1.17046253]
[1768933423144,3.21636253,2998.9,2997.9,1.17046253]
[1768933423444,0.83550915,2998.8,2997.9,1.17046253]
[1768933423634,3.21636253,2998.9,2997.9,1.17046253]
[1768933423834,0.83524967,2998.8,2997.9,1.17046253]
[1768933424132,3.21636253,2998.9,2997.9,1.17046253]
[1768933424443,4.57046253,2999.1,2998.1,1.17046253]
[1768933424642,2.71470217,2999.0,2998.1,1.17046253]
[1768933424843,1.879,2999.0,2998.1,1.17046253]
[1768933425046,0.83539879,2998.9,2998.1,1.17046253]
[1768933425246,1.879,2999.0,2998.1,1.17046253]
[1768933425440,0.83555778,2998.9,2998.1,1.17046253]
[1768933425748,1.879,2999.0,2998.1,1.17046253]
[1768933426045,0.83554386,2998.9,2997.9,1.17046253]
[1768933426246,1.879,2999.0,2997.9,1.17046253]
[1768933426452,0.83529956,2998.9,2997.9,1.17046253]
[1768933426647,1.879,2999.0,2997.9,1.17046253]
[1768933426843,0.8351489,2998.9,2997.9,1.17046253]
[1768933427052,1.88,2998.9,2997.9,1.17046253]
[1768933428853,1.88,2998.9,2998.1,1.17046253]
[1768933429555,0.16689,2999.1,2998.5,1.17046253]
[1768933429855,2.71499545,2999.0,2998.5,1.17046253]
[1768933430049,1.88,2999.0,2998.5,1.17046253]
[1768933430352,0.00313993,2999.4,2998.5,1.17046253]
[1768933430556,2.71477512,2999.3,2998.5,1.17046253]
[1768933430750,1.88,2999.3,2998.5,1.17046253]
[1768933431544,0.00313993,2999.4,2998.5,1.17046253]
[1768933431748,2.71587289,2999.3,2998.5,1.17046253]
[1768933432053,1.881,2999.3,2998.5,1.17046253]
[1768933432956,1.88413993,2999.4,2998.5,1.17046253]
[1768933433652,1.881,2999.3,2998.5,1.17046253]
[1768933433852,1.881,2999.3,2998.3,1.17046253]
[1768933434051,1.17046253,2998.6,2997.5,1.17046253]
[1768933434957,0.1669,2998.8,2997.4,3.60591909]
[1768933435363,4.71146517,2998.9,2997.4,3.60591909]
[1768933435651,0.16693,2998.4,2997.1,2.36446142]
[1768933435858,2.04793,2998.4,2997.1,2.36446142]
[1768933436358,0.16693,2998.3,2997.0,5.97038051]
[1768933436746,0.16693,2998.3,2997.0,3.60591909]
[1768933439658,0.1669,2998.9,2997.0,5.97038051]
[1768933439856,0.8340677,2998.8,2997.1,5.97038051]
[1768933440059,2.0479,2998.9,2997.3,3.60591909]
[1768933440555,2.0479,2998.9,2997.4,3.60591909]
[1768933440957,3.50900993,2999.4,2997.6,3.60591909]
[1768933441157,0.17000993,2999.4,2998.0,3.60591909]
[1768933443971,0.16688,2999.2,2997.8,2.36446142]
[1768933444176,0.16688,2999.2,2997.7,2.36446142]
[1768933444469,0.16688,2999.2,2997.7,3.60591909]
[1768933444769,0.16688,2999.2,2997.6,2.36446142]
[1768933444770,0.16688,2999.2,2997.8,3.60591909]
[1768933445364,0.00313993,2999.4,2997.9,3.60591909]
[1768933445565,0.00313993,2999.4,2998.0,3.60591909]
[1768933446569,0.00313993,2999.4,2998.1,3.60591909]
[1768933449670,0.00313993,2999.4,2998.4,3.60591909]
[1768933451670,0.00313993,2999.4,2998.4,5.97038051]
[1768933451870,0.16684,3000.0,2998.5,3.60591909]
[1768933452771,0.17033298,3000.0,2998.5,3.60591909]
[1768933453272,0.17033298,3000.0,2998.6,3.60591909]
[1768933453572,0.00349298,3000.0,2998.7,5.97038051]
[1768933453767,0.16681,3000.5,2998.9,3.60591909]
[1768933453974,0.16678,3001.0,2999.1,3.60591909]
[1768933454168,0.16678,3001.0,2999.2,3.60591909]
[1768933454169,0.83424788,3000.9,2999.2,3.60591909]
[1768933454373,0.16678,3001.0,2999.2,3.60591909]
[1768933454580,0.16678,3001.0,2999.3,3.60591909]
[1768933454771,0.17017186,3001.0,2999.4,3.60591909]
[1768933457578,0.00339186,3001.0,2999.4,3.60591909]
[1768933457881,0.16672,3002.1,3000.1,3.55266631]
[1768933458179,3.4,3002.0,3000.3,3.55266631]
[1768933458778,3.40293873,3002.0,3000.3,3.55266631]
[1768933458978,0.00293873,3002.0,3000.3,3.55266631]
[1768933459668,0.00293873,3002.0,3000.7,3.55266631]
[1768933459874,0.16669,3002.8,3000.7,3.55266631]
[1768933460072,0.16669,3002.8,3000.7,3.71945631]
[1768933460368,0.16669,3002.8,3000.3,2.95738215]
[1768933460369,0.16669,3002.8,3001.0,3.55266631]
[1768933460572,0.16669,3002.8,3001.1,3.55266631]
[1768933460782,0.17084802,3002.8,3001.1,3.55266631]
[1768933462476,0.00415802,3002.8,3001.1,3.55266631]
[1768933462670,0.00415802,3002.8,3001.3,3.71942631]
[1768933463875,0.16666,3003.3,3001.3,3.71942631]
[1768933464082,0.16666,3003.3,3001.6,3.55266631]
[1768933464483,0.16666,3003.3,3001.6,5.48866631]
[1768933464683,0.16666,3003.3,3001.7,3.55266631]
[1768933464979,0.16942596,3003.3,3001.7,3.55510524]
[1768933465878,0.00276596,3003.3,3001.7,3.55510524]
[1768933466080,0.00276596,3003.3,3001.7,3.72184524]
[1768933466281,0.00276596,3003.3,3001.9,3.55266631]
[1768933469584,3.56303457,3004.2,3002.0,3.55266631]
[1768933469981,0.16661,3004.2,3002.5,3.55266631]
[1768933470386,0.16661,3004.0,3002.5,3.55266631]
[1768933470586,0.17023568,3004.0,3002.5,3.55266631]
[1768933472185,0.00362568,3004.0,3002.5,3.55266631]
[1768933473590,0.16659,3004.5,3002.5,3.55266631]
[1768933474088,3.39642457,3005.1,3003.0,3.55266631]
[1768933474485,0.16657,3004.9,3003.0,3.55266631]
[1768933474885,0.00330151,3005.1,3003.2,3.55266631]
[1768933475195,0.00330151,3005.1,3003.5,3.55266631]
[1768933476090,0.16657,3004.9,3003.5,3.55266631]
[1768933481113,3.39972608,3005.1,3003.5,3.55266631]
[1768933481312,3.39972608,3005.1,3003.0,3.55266631]
[1768933482110,0.16658,3004.7,3003.0,3.55266631]
[1768933483510,3.39972608,3005.1,3003.0,3.55266631]
[1768933483511,0.16659,3004.5,3003.0,3.55266631]
[1768933484313,0.16656,3005.0,3003.0,3.55266631]
[1768933485519,3.39972608,3005.1,3003.0,3.55266631]
[1768933485718,0.16657,3004.8,3003.0,3.55266631]
[1768933488712,0.00330151,3005.1,3003.0,3.55266631]
[1768933489617,0.16985151,3005.1,3003.4,3.6161983]
[1768933489823,3.71036441,3005.1,3003.4,3.6161983]
[1768933490016,0.16659,3004.5,3002.6,3.6161983]
[1768933492327,0.1666,3004.2,3002.6,3.6161983]
[1768933494227,3.7070629,3004.5,3002.6,3.6161983]
[1768933494419,0.83171998,3004.4,3002.6,3.6161983]
[1768933494619,3.8736529,3004.5,3002.6,3.6161983]
[1768933494828,0.83171366,3004.4,3002.6,3.6161983]
[1768933495019,3.8736529,3004.5,3002.9,3.6161983]
[1768933495325,0.83167951,3004.4,3002.9,3.6161983]
[1768933495526,3.8736529,3004.5,3002.9,3.6161983]
[1768933495822,0.83203976,3004.4,3002.9,3.6161983]
[1768933496028,0.83208448,3004.3,3002.9,3.6161983]
[1768933496223,3.8736529,3004.4,3002.9,3.6161983]
[1768933496521,4.53946833,3004.3,3002.5,3.6161983]
[1768933496723,3.7070629,3004.3,3002.5,3.6161983]
[1768933497835,0.83263143,3004.2,3002.5,3.6161983]
[1768933498131,3.7070629,3004.3,3002.5,3.6161983]
[1768933498321,4.53992316,3004.2,3002.5,3.6161983]
[1768933498527,3.7070629,3004.2,3002.5,3.6161983]
[1768933499127,4.54019052,3004.1,3002.5,3.6161983]
[1768933499327,3.7070629,3004.1,3002.5,3.6161983]
[1768933500129,0.83313918,3004.0,3002.5,3.6161983]
[1768933500336,3.7070629,3004.1,3002.5,3.6161983]
[1768933500534,0.83321221,3004.0,3002.5,3.6161983]
[1768933500827,3.8736729,3004.1,3002.5,3.6161983]
[1768933501029,0.16664,3003.6,3002.1,5.98065972]
[1768933501236,0.16664,3003.6,3002.1,3.6161983]
[1768933501533,0.16661,3004.1,3002.2,3.6161983]
[1768933501735,0.83304844,3004.0,3002.2,3.6161983]
[1768933502031,0.83304844,3003.9,3002.2,3.6161983]
[1768933502230,0.16661,3004.0,3002.2,3.6161983]
[1768933502434,0.83292667,3003.9,3002.2,3.6161983]
[1768933502630,0.16661,3004.0,3002.3,3.6161983]
[1768933502834,0.83291706,3003.9,3002.3,3.6161983]
[1768933503032,3.7070629,3004.4,3002.6,3.6161983]
[1768933503231,0.83287909,3004.3,3002.7,3.6161983]
[1768933503537,0.1666,3004.3,3002.7,3.6161983]
[1768933503736,0.16661,3004.2,3002.7,3.6161983]
[1768933503926,0.16661,3004.1,3002.7,3.6161983]
[1768933505834,0.16663,3003.8,3002.3,3.6161983]
[1768933506331,0.16663,3003.8,3002.3,5.98065972]
[1768933506725,0.16663,3003.8,3002.3,3.6161983]
[1768933507135,0.16663,3003.8,3002.3,5.98065972]
[1768933507529,0.16663,3003.7,3002.3,3.6161983]
[1768933507728,3.7070629,3004.1,3002.3,3.6161983]
[1768933507729,0.16664,3003.6,3002.3,3.6161983]
[1768933509234,0.16664,3003.5,3002.3,3.6161983]
[1768933513835,0.16664,3003.5,3002.1,2.36446142]
[1768933514533,0.16664,3003.5,3002.1,5.98065972]
[1768933515739,0.16664,3003.5,3002.2,3.58932597]
[1768933516233,0.16664,3003.5,3002.4,3.58932597]
[1768933516735,0.16661,3004.1,3002.5,4.16268421]
[1768933516939,0.16661,3004.1,3002.6,3.58932597]
[1768933517333,0.16661,3004.1,3002.6,5.95378739]
[1768933517640,0.16661,3004.1,3002.7,3.58932597]
[1768933519143,0.16661,3004.1,3002.7,5.95378739]
[1768933519534,0.16661,3004.1,3002.5,3.73122279]
[1768933519535,0.16661,3004.1,3002.8,5.95378739]
[1768933519735,0.16661,3004.1,3002.9,3.58932597]
[1768933521146,0.16661,3004.1,3002.9,5.95378739]
[1768933521339,0.16661,3004.1,3003.0,3.58932597]
[1768933522642,0.16661,3004.1,3003.1,3.58932597]
[1768933527142,0.16661,3004.1,3002.8,1.935]
[1768933527343,0.16661,3004.1,3002.8,5.52432597]
[1768933527540,0.16661,3004.1,3002.9,3.58932597]
[1768933530044,0.16661,3004.0,3002.6,2.36446142]
[1768933530649,0.16661,3004.0,3002.6,5.95378739]
[1768933530953,0.16661,3004.0,3002.6,3.58932597]
[1768933534647,3.82789787,3004.5,3002.7,3.58932597]
[1768933534854,1.16559729,3004.3,3003.3,1.16559729]
[1768933536854,0.16659,3004.4,3003.1,3.58932597]
[1768933538448,0.1666,3004.3,3003.1,3.58932597]
[1768933538951,0.16661,3004.2,3003.1,3.58932597]
[1768933539653,0.16661,3004.1,3003.1,3.58932597]
[1768933540653,0.16658,3004.7,3003.1,5.95378739]
[1768933540860,0.83170345,3004.6,3003.2,3.58932597]
[1768933541163,0.99829345,3004.5,3003.2,3.58932597]
[1768933541349,0.16659,3004.5,3003.2,3.58932597]
[1768933543168,0.16659,3004.5,3003.2,5.95378739]
[1768933543460,0.16659,3004.5,3003.3,3.58932597]
[1768933546662,0.16659,3004.5,3003.4,3.56446197]
[1768933546957,0.16656,3004.9,3003.4,3.56446197]
[1768933547153,0.83240412,3004.8,3003.4,3.56446197]
[1768933547354,0.83240412,3004.7,3003.4,3.56446197]
[1768933547550,0.83240412,3004.6,3003.4,3.56446197]
[1768933547860,0.16656,3004.9,3003.4,3.56446197]
[1768933548063,0.83236834,3004.8,3003.4,3.56446197]
[1768933548262,0.83236834,3004.7,3003.4,3.56446197]
[1768933548457,0.83236834,3004.6,3003.4,3.56446197]
[1768933548656,0.16656,3004.9,3003.4,3.56446197]
[1768933548858,0.83232166,3004.8,3003.4,3.56446197]
[1768933549062,0.83232166,3004.7,3003.4,3.56446197]
[1768933549261,0.16656,3004.9,3003.4,3.56446197]
[1768933549262,0.16656,3004.9,3003.5,3.56446197]
[1768933549552,0.00330151,3005.1,3003.6,3.56446197]
[1768933549762,0.00330151,3005.1,3003.8,3.56446197]
[1768933551365,0.00330151,3005.1,3003.6,2.36446142]
[1768933551366,3.61357145,3005.0,3003.4,3.56446197]
[1768933551759,0.9977792,3004.9,3003.4,3.56446197]
[1768933551959,0.8312092,3004.8,3003.4,3.56446197]
[1768933552161,0.8312092,3004.7,3003.4,3.56446197]
[1768933552461,0.16657,3004.9,3003.4,3.56446197]
[1768933552665,0.83120229,3004.8,3003.4,3.56446197]
[1768933552857,0.83120229,3004.7,3003.4,3.56446197]
[1768933553057,0.16657,3004.9,3003.4,3.56446197]
[1768933553260,0.83120229,3004.8,3003.4,3.56446197]
[1768933553466,0.16657,3004.9,3003.4,3.56446197]
[1768933553467,0.83120229,3004.7,3003.4,3.56446197]
[1768933553663,0.16657,3004.9,3003.4,3.56446197]
[1768933553857,0.83119841,3004.8,3003.4,3.56446197]
[1768933554058,0.83119841,3004.7,3003.4,3.56446197]
[1768933554257,0.16657,3004.9,3003.4,3.56446197]
[1768933554556,0.83118863,3004.8,3003.4,3.56446197]
[1768933554756,0.83118863,3004.7,3003.4,3.56446197]
[1768933554957,0.16657,3004.9,3003.4,3.56446197]
[1768933555159,0.83118457,3004.8,3003.4,3.56446197]
[1768933555359,0.16657,3004.9,3003.4,3.56446197]
[1768933557362,0.00330151,3005.1,3003.4,3.56446197]
[1768933557661,0.00330151,3005.1,3003.4,5.92892339]
[1768933557863,0.00330151,3005.1,3003.5,3.56446197]
[1768933558371,0.00330151,3005.1,3003.6,3.56446197]
[1768933559070,0.00330151,3005.1,3003.8,3.56446197]
[1768933561566,0.00330151,3005.1,3003.9,3.56446197]
[1768933561764,0.00330151,3005.1,3003.9,3.56852021]
[1768933562270,0.00330151,3005.1,3004.0,3.56446197]
[1768933562771,3.88054986,3006.2,3004.1,3.56446197]
[1768933562975,0.83030954,3006.1,3004.2,3.56446197]
[1768933563173,0.83030954,3006.0,3004.2,3.56446197]
[1768933563371,0.83030954,3005.9,3004.2,3.56446197]
[1768933563573,0.83030954,3005.8,3004.2,3.56446197]
[1768933563769,0.00298168,3005.8,3004.2,5.92892339]
[1768933563970,0.00298168,3005.8,3004.5,3.56446197]
[1768933565376,0.00298168,3005.8,3004.1,5.32184357]
[1768933565377,3.61655313,3005.8,3004.1,3.56446197]
[1768933565568,0.82927638,3005.7,3004.1,3.56446197]
[1768933565768,3.61655313,3005.8,3004.1,3.56446197]
[1768933566366,0.16653,3005.6,3004.1,3.56446197]
[1768933567068,0.82631346,3005.5,3004.1,3.56446197]
[1768933567268,3.78010145,3005.6,3004.1,3.56446197]
[1768933567472,0.82635782,3005.5,3004.1,3.56446197]
[1768933567772,0.16653,3005.6,3004.1,3.56446197]
[1768933567972,0.82635672,3005.5,3004.1,3.56446197]
[1768933568162,0.16653,3005.6,3004.1,3.56446197]
[1768933572775,0.82652119,3005.5,3004.1,3.56446197]
[1768933573077,0.16653,3005.6,3004.1,3.56446197]
[1768933574275,0.82660663,3005.5,3004.1,3.56446197]
[1768933574578,0.16653,3005.6,3004.1,3.56446197]
[1768933574776,0.82663673,3005.5,3004.1,3.56446197]
[1768933574977,0.16653,3005.6,3004.1,3.56446197]
[1768933575278,0.16654,3005.5,3004.1,3.56446197]
[1768933578280,0.00298168,3005.8,3003.9,0.00405824]
[1768933578281,3.55245135,3005.4,3003.9,0.00405824]
[1768933579678,3.55245135,3005.4,3003.9,3.5918068]
[1768933580472,3.38591135,3005.1,3003.9,0.00405824]
[1768933580678,0.16657,3004.9,3003.9,0.00405824]
[1768933581787,0.16657,3004.9,3003.9,3.5918068]
[1768933582075,3.4,3005.1,3003.9,3.5918068]